bitfinex-derivatives/quotes_SOLF0:USTF0_20250127
["timestamp","ask_amount","ask_price","bid_price","bid_amount"]
[1737996894310,16.26383196,227.95,227.67,16.26383196]
[1737996894508,16.26383196,227.93,227.77,1.4098]
[1737996894710,4.3891,227.9,227.77,1.4098]
[1737996895112,16.26383196,227.93,227.77,1.4098]
[1737996895413,0.0285777,227.86,227.81,0.03098461]
[1737996896717,0.0285777,227.86,227.81,1.43828461]
[1737996898713,4.1281,228.01,227.83,4.3901]
[1737996899316,4.3897,227.86,227.81,1.4073]
[1737996899518,16.26383196,227.96,227.81,1.4073]
[1737996900120,0.02902448,227.91,227.86,0.03004874]
[1737996900415,16.26383196,228.0,227.81,1.4073]
[1737996900717,0.02923562,227.91,227.86,0.03005278]
[1737996901109,4.3889,227.9,227.81,5.7979]
[1737996901413,0.02923562,227.91,227.86,0.03191326]
[1737996902015,0.02923562,227.91,227.77,1.4098]
[1737996902421,16.26383196,227.97,227.77,1.4098]
[1737996902718,19.01373196,228.01,227.8,16.26383196]
[1737996902912,19.01373196,228.01,227.77,1.4098]
[1737996903118,0.03348054,227.93,227.88,0.03276503]
[1737996904318,16.26383196,228.05,227.88,0.03276503]
[1737996904513,4.3878,227.97,227.88,4.42206503]
[1737996904720,4.3878,227.97,227.88,4.3893]
[1737996905022,16.26383196,228.05,227.85,4.3898]
[1737996905419,0.03243536,227.95,227.9,0.02833544]
[1737996905623,16.26383196,228.05,227.9,0.02833544]
[1737996905922,16.26383196,228.05,227.84,16.26383196]
[1737996906317,17.62123196,228.09,227.88,16.26383196]
[1737996906523,5.74439548,228.15,227.95,4.3879]
[1737996906715,17.23318644,228.16,228.12,16.26383196]
[1737996906716,16.41808192,228.16,228.12,16.26383196]
[1737996906916,114.43146875,228.21,228.14,16.26383196]
[1737996906917,55.16413337,228.19,228.14,16.26383196]
[1737996907215,114.43146875,228.21,228.14,16.26383196]
[1737996907420,114.43146875,228.21,228.03,16.26383196]
[1737996907624,16.29360915,228.19,228.14,3.493e-05]
[1737996907921,16.26383196,228.15,227.93,91.56383196]
[1737996908123,2.8325,228.2,227.58,478.93348202]
[1737996908124,16.26383196,228.06,227.85,16.26383196]
[1737996908324,4.3872,227.99,227.85,16.26383196]
[1737996908523,2.7982,228.05,227.89,16.26383196]
[1737996908723,1.4557,228.05,227.89,16.26383196]
[1737996908924,3.72,228.09,227.89,16.26383196]
[1737996909225,0.02855513,227.99,227.95,0.02891115]
[1737996909619,1.4557,228.08,227.89,16.26383196]
[1737996910026,0.028032,227.99,227.95,0.03238846]
[1737996910420,4.3861,228.05,227.95,0.03238846]
[1737996910624,0.02860951,227.99,227.95,0.03238846]
[1737996910825,0.02860951,227.99,227.85,16.26383196]
[1737996911025,16.26383196,228.04,227.95,0.02835885]
[1737996911220,16.26383196,228.04,227.59,44.11084237]
[1737996911221,0.02934656,227.94,227.59,9.48779607]
[1737996911425,16.26383196,227.71,227.59,9.48779607]
[1737996911622,4.3926,227.71,227.54,16.26383196]
[1737996911825,16.26383196,227.81,227.59,16.26383196]
[1737996912026,16.26383196,227.85,227.63,16.26383196]
[1737996912227,4.3915,227.77,227.63,16.26383196]
[1737996912430,0.03292549,227.76,227.72,0.02886285]
[1737996912625,4.3921,227.74,227.72,0.02886285]
[1737996913131,4.3932,227.68,227.52,26.47154586]
[1737996913329,26.47154586,227.69,227.48,26.47154586]
[1737996913633,4.3939,227.64,227.48,26.47154586]
[1737996913931,26.47154586,227.69,227.48,26.47154586]
[1737996914126,4.3929,227.7,227.54,0.03111021]
[1737996914328,0.03243337,227.58,227.54,0.03111021]
[1737996914532,4.3929,227.7,227.52,26.47154586]
[1737996914734,0.02965817,227.58,227.54,0.02968489]
[1737996914931,0.02965817,227.58,227.56,26.47154586]
[1737996915142,1.3949,227.8,227.56,26.47154586]
[1737996915332,1.3949,227.8,227.61,26.47154586]
[1737996915634,0.02959394,227.7,227.61,26.47154586]
[1737996915834,0.02959394,227.7,227.68,0.02940143]
[1737996916130,0.02959394,227.7,227.66,26.47154586]
[1737996916434,4.3906,227.82,227.67,0.908606]
[1737996916629,2.7211,227.91,227.75,26.47154586]
[1737996917033,26.47154586,227.9,227.7,26.47154586]
[1737996917234,26.47154586,227.86,227.71,0.87831013]
[1737996917435,4.3918,227.76,227.71,0.87831013]
[1737996917635,0.03079555,227.81,227.59,3.9]
[1737996917835,26.47154586,227.82,227.59,3.9]
[1737996918228,26.47154586,227.78,227.59,3.9]
[1737996918435,4.3921,227.74,227.59,3.9]
[1737996918832,0.02789699,227.69,227.64,0.03334463]
[1737996919033,4.42099699,227.69,227.64,0.03334463]
[1737996919542,0.02789699,227.69,227.64,0.03334463]
[1737996920932,0.02789699,227.69,227.48,26.47154586]
[1737996921132,26.47154586,227.7,227.48,26.47154586]
[1737996921331,4.3931,227.69,227.52,26.47154586]
[1737996922238,0.02969502,227.63,227.58,0.03286295]
[1737996925337,4.2629,227.77,227.6,26.47154586]
[1737996925542,26.47154586,227.73,227.56,26.47154586]
[1737996925737,4.3939,227.65,227.49,4.3968]
[1737996925934,26.47154586,227.73,227.52,26.47154586]
[1737996926334,4.3937,227.66,227.52,26.47154586]
[1737996926540,0.03022629,227.65,227.6,0.02958638]
[1737996926948,4.42402629,227.65,227.6,0.02958638]
[1737996927737,4.394,227.64,227.6,0.02958638]
[1737996928242,0.03022629,227.65,227.39,84.3130842]
[1737996928243,26.50177215,227.65,227.44,26.47154586]
[1737996928438,1.3268,227.63,227.44,26.47154586]
[1737996928836,4.3954,227.57,227.44,30.86934586]
[1737996929042,1.3268,227.63,227.44,26.47154586]
[1737996929236,26.47154586,227.61,227.4,26.47154586]
[1737996929436,0.02948341,227.56,227.51,0.03260426]
[1737996930242,0.02948341,227.56,227.4,26.47154586]
[1737996930642,26.47154586,227.61,227.4,26.47154586]
[1737996931140,4.3955,227.56,227.41,4.3984]
[1737996931344,0.03371003,227.53,227.48,0.03101545]
[1737996934936,0.03371003,227.53,227.48,16.35944386]
[1737996935343,0.03371003,227.53,227.51,4.3964]
[1737996935641,1.356,227.69,227.52,16.32842841]
[1737996935845,16.32842841,227.82,227.6,16.32842841]
[1737996936040,4.009,227.84,227.64,16.32842841]
[1737996936344,16.32842841,227.96,227.76,16.32842841]
[1737996936735,0.03111451,227.88,227.76,16.32842841]
[1737996936936,0.03111451,227.88,227.8,16.32842841]
[1737996937144,4.009,227.98,227.8,16.32842841]
[1737996937340,0.03282717,227.86,227.84,16.32842841]
[1737996937540,16.32842841,228.07,227.85,16.32842841]
[1737996937738,2.6635,228.06,227.89,16.32842841]
[1737996937942,2.6635,228.06,227.93,16.32842841]
[1737996938144,16.32842841,228.15,227.93,16.32842841]
[1737996938343,2.6635,228.14,227.97,16.32842841]
[1737996938544,2.6635,228.14,227.96,26.4045029]
[1737996938848,0.03201062,228.08,228.03,0.03127055]
[1737996939845,0.03201062,228.08,227.92,26.4045029]
[1737996940041,26.43651352,228.08,227.88,26.4045029]
[1737996940239,26.4045029,228.12,227.88,26.4045029]
[1737996940441,2.6635,228.14,227.96,26.4045029]
[1737996941247,0.03054724,228.07,228.03,0.03103347]
[1737996942138,0.03054724,228.07,227.92,26.4045029]
[1737996942444,2.6635,228.14,227.97,26.4045029]
[1737996942845,4.385,228.11,227.97,26.4045029]
[1737996943048,2.6635,228.14,227.97,26.4045029]
[1737996943346,0.02916466,228.06,228.05,26.4045029]
[1737996943742,4.3839,228.17,228.05,26.4045029]
[1737996943944,0.03198721,228.08,228.03,0.03331586]
[1737996944139,26.4045029,228.2,228.01,26.4045029]
[1737996944349,0.03023963,228.08,228.05,26.4045029]
[1737996944547,4.384,228.16,228.05,26.4045029]
[1737996944841,1.3729,228.22,228.05,26.4045029]
[1737996944842,0.02764598,228.09,228.05,26.4045029]
[1737996945044,0.02764598,228.09,228.04,0.02920883]
[1737996945248,1.3729,228.22,228.01,26.4045029]
[1737996945553,4.3856,228.08,227.97,26.4045029]
[1737996945741,0.03253574,228.14,228.09,2.612e-05]
[1737996945947,1.3729,228.22,227.97,26.4045029]
[1737996946251,26.4045029,228.12,227.71,75.4]
[1737996946551,26.4045029,228.12,227.83,3.9]
[1737996946948,4.3865,228.03,228.0,0.02910482]
[1737996947146,0.03175817,228.04,228.0,0.02910482]
[1737996947549,4.3868,228.01,228.0,0.02910482]
[1737996947942,0.03175817,228.04,228.0,0.02910482]
[1737996948241,0.03175817,228.04,228.0,26.43360772]
[1737996948850,0.03175817,228.04,228.0,0.02910482]
[1737996949244,4.3868,228.02,228.0,0.02910482]
[1737996949444,0.03175817,228.04,227.88,26.4045029]
[1737996949846,2.6901,228.05,227.84,26.4045029]
[1737996950052,26.4045029,228.02,227.8,26.4045029]
[1737996950551,0.03138678,227.93,227.89,0.03151101]
[1737996950748,4.3889,227.91,227.89,0.03151101]
[1737996951345,4.42180198,227.93,227.89,0.03151101]
[1737996951550,0.03330198,227.93,227.89,0.03151101]
[1737996951850,4.3888,227.91,227.89,0.03151101]
[1737996952953,0.03330198,227.93,227.89,0.03151101]
[1737996953452,0.03330198,227.93,227.92,26.4045029]
[1737996954147,1.3175,228.05,227.92,26.4045029]
[1737996954351,4.3868,228.02,227.92,26.4045029]
[1737996954651,1.3175,228.05,227.92,26.4045029]
[1737996955049,4.3871,228.0,227.92,26.4045029]
[1737996955255,0.03259022,228.01,227.96,0.03284596]
[1737996955453,4.3874,227.98,227.96,0.03284596]
[1737996956454,0.03259022,228.01,227.96,0.03284596]
[1737996957048,0.03259022,228.01,227.96,26.43734886]
[1737996957349,26.4045029,228.18,227.96,26.43734886]
[1737996957350,1.3125,228.13,228.0,26.4045029]
[1737996957947,4.3855,228.08,228.0,26.4045029]
[1737996958147,1.3125,228.13,228.0,26.4045029]
[1737996958450,0.03358747,228.06,228.02,0.03325158]
[1737996959047,1.4232,228.17,228.02,0.03325158]
[1737996959048,26.4045029,228.29,228.04,26.4045029]
[1737996959255,1.4232,228.24,228.03,26.4045029]
[1737996960051,1.4232,228.24,228.12,26.4045029]
[1737996960248,0.03144574,228.16,228.11,0.03087722]
[1737996960557,4.3822,228.25,228.16,4.3838]
[1737996960757,0.02920349,228.16,228.11,0.03000029]
[1737996960953,1.3125,228.28,228.07,3.84]
[1737996961257,1.3675,228.35,228.07,3.84]
[1737996961851,1.3675,228.35,228.22,26.4045029]
[1737996962258,0.03362689,228.23,228.22,26.4045029]
[1737996962457,2.7074,228.39,228.22,26.4045029]
[1737996962653,1.3188,228.39,228.33,26.4045029]
[1737996962859,26.4045029,228.55,228.33,26.4045029]
[1737996963351,4.0797,228.56,228.45,26.4045029]
[1737996963552,2.7124,228.68,228.49,26.4045029]
[1737996963749,0.79382217,228.67,228.49,26.4045029]
[1737996963950,4.40649037,228.61,228.49,26.4045029]
[1737996964151,0.03109037,228.61,228.49,26.4045029]
[1737996964350,0.03109037,228.61,228.56,0.03245755]
[1737996964547,0.03109037,228.61,228.57,26.4045029]
[1737996964750,2.7124,228.68,228.57,26.4045029]
[1737996964955,0.03348512,228.61,228.57,26.4045029]
[1737996966060,2.7124,228.8,228.58,26.4045029]
[1737996966255,4.3717,228.8,228.72,26.4045029]
[1737996966453,2.8175,228.93,228.76,26.4045029]
[1737996966758,0.79564575,228.92,228.84,26.4045029]
[1737996966953,1.4018,228.93,228.84,26.4045029]
[1737996967158,1.4018,228.93,228.8,26.4045029]
[1737996967359,0.03149308,228.91,228.8,26.4045029]
[1737996967663,0.03149308,228.91,228.84,0.02914143]
[1737996968363,0.03149308,228.91,228.84,26.43364433]
[1737996969259,0.03149308,228.91,228.84,0.02914143]
[1737996969659,4.3714,228.82,228.76,26.4045029]
[1737996969956,26.4045029,228.94,228.72,26.4045029]
[1737996970161,26.4045029,228.94,228.6,75.16]
[1737996970162,26.4045029,228.86,228.68,26.4045029]
[1737996970358,1.432,228.85,228.68,26.4045029]
[1737996970562,1.432,228.85,228.72,26.4045029]
[1737996970759,4.3711,228.83,228.76,26.4045029]
[1737996970960,0.02880354,228.81,228.76,26.43796016]
[1737996971265,0.02880354,228.81,228.76,0.03345726]
[1737996972568,0.02880354,228.81,228.8,26.4045029]
[1737996974369,4.3722,228.77,228.76,0.03345726]
[1737996975866,4.3722,228.77,228.76,5.726e-05]
[1737996976864,4.3756,228.6,228.54,26.4045029]
[1737996977070,26.4045029,228.73,228.54,26.4045029]
[1737996977368,1.4154,228.72,228.54,26.4045029]
[1737996977765,26.4045029,228.69,228.5,26.4045029]
[1737996978269,0.02803811,228.65,228.61,0.02898176]
[1737996978460,0.02803811,228.65,228.5,26.4045029]
[1737996978867,4.376,228.58,228.5,26.4045029]
[1737996979063,26.4045029,228.69,228.5,26.4045029]
[1737996979271,4.376,228.58,228.5,26.4045029]
[1737996979575,0.03045496,228.56,228.52,0.02847059]
[1737996979771,0.03045496,228.56,228.5,26.4045029]
[1737996979976,1.4154,228.72,228.5,26.4045029]
[1737996980275,0.03145015,228.63,228.56,26.4045029]
[1737996980575,0.03145015,228.63,228.59,0.03251383]
[1737996981477,0.03145015,228.63,228.6,26.4045029]
[1737996982069,1.3533,228.78,228.6,26.4045029]
[1737996982277,1.3533,228.78,228.68,26.4045029]
[1737996982477,1.3533,228.78,228.64,26.4045029]
[1737996982677,1.3533,228.78,228.58,26.4045029]
[1737996983080,4.3746,228.65,228.58,26.4045029]
[1737996983284,0.02857126,228.7,228.66,0.03348043]
[1737996983477,27.7578029,228.78,228.58,26.4045029]
[1737996983676,4.375,228.63,228.58,26.4045029]
[1737996983981,3.78,228.76,228.54,26.4045029]
[1737996984176,4.3737,228.7,228.54,30.7810029]
[1737996984377,3.78,228.76,228.54,26.4045029]
[1737996984782,4.3737,228.7,228.54,26.4045029]
[1737996985080,3.78,228.76,228.54,26.4045029]
[1737996985272,0.03136907,228.64,228.6,0.03195755]
[1737996985473,4.3753,228.62,228.6,0.03195755]
[1737996985678,3.78,228.76,228.54,26.4045029]
[1737996985980,0.03193542,228.63,228.59,0.03171397]
[1737996986381,4.3736,228.7,228.62,4.3751]
[1737996986578,0.02784281,228.63,228.59,0.0295412]
[1737996986771,1.4211,228.77,228.58,26.4045029]
[1737996986976,0.02848813,228.63,228.59,0.03271533]
[1737996987176,4.3742,228.67,228.58,26.4045029]
[1737996987372,0.03345974,228.63,228.59,0.03275425]
[1737996987778,0.79454958,228.76,228.53,26.4045029]
[1737996987972,0.03311378,228.63,228.59,0.02920104]
[1737996988179,26.4045029,228.71,228.47,26.4045029]
[1737996988375,26.4045029,228.71,228.59,0.03327007]
[1737996988376,0.02949663,228.63,228.59,0.03327007]
[1737996988582,4.40439663,228.63,228.59,0.03327007]
[1737996988878,0.02949663,228.63,228.59,0.03327007]
[1737996989079,0.02949663,228.63,228.61,26.4045029]
[1737996989586,4.3732,228.73,228.66,4.3743]
[1737996989784,1.4211,228.77,228.67,26.4045029]
[1737996990179,4.373,228.74,228.67,26.4045029]
[1737996990684,0.03004586,228.73,228.68,0.02901528]
[1737996991380,4.3737,228.7,228.68,0.02901528]
[1737996992383,0.03004586,228.73,228.68,0.02901528]
[1737996994684,4.3717,228.8,228.71,26.4045029]
[1737996994885,2.7704,228.86,228.77,4.3722]
[1737996995183,1.4304,228.86,228.76,26.4045029]
[1737996995388,4.371,228.84,228.76,26.4045029]
[1737996995688,1.3231,228.9,228.8,26.4045029]
[1737996995885,0.03241426,228.82,228.8,26.4045029]
[1737996996284,1.3231,228.9,228.8,26.4045029]
[1737996996485,0.03301958,228.83,228.79,0.02756288]
[1737996996687,1.3622,228.98,228.84,4.3709]
[1737996996982,1.3622,228.98,228.82,26.4045029]
[1737996997186,4.3693,228.93,228.86,26.4045029]
[1737996997387,1.3622,228.98,228.86,26.4045029]
[1737996997782,0.02775584,228.94,228.9,0.0277428]
[1737996999287,0.02775584,228.94,228.92,4.3693]
[1737996999488,0.02775584,228.94,228.93,26.4045029]
[1737996999790,0.02775584,228.94,228.9,0.0277428]
[1737997001889,0.02775584,228.94,228.9,4.3975428]
[1737997002090,0.02775584,228.94,228.92,26.4045029]
[1737997002591,0.02775584,228.94,228.92,30.7739029]
[1737997002792,0.02775584,228.94,228.92,26.4045029]
[1737997003688,4.3692,228.93,228.9,0.0277428]
[1737997003894,0.02775584,228.94,228.9,0.0277428]
[1737997004291,4.3696,228.91,228.9,0.0277428]
[1737997004594,4.3696,228.91,228.85,3.66822369]
[1737997004595,0.02775584,228.94,228.85,3.66822369]
[1737997004791,0.02775584,228.94,228.8,26.4045029]
[1737997005101,0.79977612,228.99,228.8,26.4045029]
[1737997005394,4.3713,228.82,228.81,3.67953166]
[1737997005591,4.3713,228.82,228.81,1.50053166]
[1737997005790,4.3713,228.82,228.61,0.0747]
[1737997005791,26.4045029,228.88,228.67,26.4045029]
[1737997005985,1.3597,228.81,228.63,26.4045029]
[1737997006393,4.3728,228.75,228.63,30.7794029]
[1737997006588,4.3728,228.75,228.63,26.4045029]
[1737997006893,1.3597,228.81,228.63,26.4045029]
[1737997007086,0.03160741,228.71,228.67,0.03197856]
[1737997007495,4.3722,228.78,228.63,26.4045029]
[1737997007694,0.03085264,228.71,228.67,0.03324383]
[1737997007893,0.03085264,228.71,228.68,4.374]
[1737997008095,0.03085264,228.71,228.67,26.43774673]
[1737997008493,0.03085264,228.71,228.69,4.3736]
[1737997009296,1.4351,228.91,228.75,26.4045029]
[1737997009498,2.7461,228.91,228.79,26.4045029]
[1737997009699,4.3704,228.87,228.79,26.4045029]
[1737997009894,2.7461,228.91,228.79,26.4045029]
[1737997010098,4.369,228.94,228.83,26.4045029]
[1737997010302,0.03366837,228.87,228.83,26.43756131]
[1737997010495,0.03366837,228.87,228.83,26.4045029]
[1737997010700,0.02775527,228.87,228.83,26.43228021]
[1737997012898,4.3706,228.86,228.83,26.43228021]
[1737997013101,0.02775527,228.87,228.83,26.43228021]
[1737997013404,0.80010529,228.97,228.83,26.43228021]
[1737997013603,0.80010529,228.97,228.87,26.4045029]
[1737997013999,0.80010529,228.97,228.91,26.4045029]
[1737997014506,0.0302643,228.96,228.92,0.03363623]
[1737997014704,4.3989643,228.96,228.92,0.03363623]
[1737997015805,0.0302643,228.96,228.92,0.03363623]
[1737997016507,0.0302643,228.96,228.93,4.3692]
[1737997017104,0.0302643,228.96,228.95,4.3688]
[1737997017406,0.0302643,228.96,228.95,30.7733029]
[1737997017710,0.0302643,228.96,228.95,26.4045029]
[1737997018206,0.80010529,228.97,228.95,30.7733029]
[1737997018406,0.80010529,228.97,228.95,26.4045029]
[1737997019201,0.80010529,228.97,228.92,0.03363623]
[1737997020103,0.80010529,228.97,228.93,4.3691]
[1737997021211,0.80010529,228.97,228.92,0.03363623]
[1737997021407,0.80010529,228.97,228.96,4.3686]
[1737997021613,0.03054187,228.98,228.95,26.4045029]
[1737997021805,4.3671,229.04,228.95,26.4045029]
[1737997022005,4.3671,229.04,229.0,26.4045029]
[1737997022713,1.3271,229.09,228.96,26.4045029]
[1737997022912,0.0327772,229.04,229.0,0.03290772]
[1737997023208,4.3683,228.98,228.92,4.3694]
[1737997023413,1.3271,229.09,228.91,26.4045029]
[1737997023614,1.3271,229.09,228.95,26.4045029]
[1737997023907,4.368,229.0,228.95,26.4045029]
[1737997024108,1.3271,229.09,228.95,26.4045029]
[1737997024314,0.02868654,229.0,228.95,26.43391031]
[1737997024516,0.02868654,229.0,228.95,26.4045029]
[1737997024716,0.02868654,229.0,228.95,26.43341139]
[1737997025017,4.3684,228.98,228.95,0.02890849]
[1737997025319,0.02868654,229.0,228.87,26.4045029]
[1737997025515,4.3698,228.9,228.87,26.4045029]
[1737997026112,1.3812,228.99,228.87,26.4045029]
[1737997026417,1.3812,228.99,228.83,26.4045029]
[1737997026622,0.02995715,228.95,228.91,0.02880205]
[1737997026913,4.3694,228.92,228.91,0.02880205]
[1737997027116,0.02995715,228.95,228.79,26.4045029]
[1737997027315,1.4274,228.98,228.79,26.4045029]
[1737997027714,1.4274,228.98,228.83,26.4045029]
[1737997028217,0.03188116,228.93,228.88,0.02962358]
[1737997028614,0.03188116,228.93,228.88,4.39962358]
[1737997028817,0.03188116,228.93,228.91,26.4045029]
[1737997030220,2.8696,229.08,228.91,26.4045029]
[1737997030421,2.8696,229.08,228.95,26.4045029]
[1737997030616,1.3271,229.09,229.03,26.4045029]
[1737997030817,1.4415,229.16,229.07,26.4045029]
[1737997031118,1.4415,229.16,229.03,26.4045029]
[1737997031322,4.367,229.05,228.99,26.4045029]
[1737997031621,0.03298468,229.12,228.99,26.4045029]
[1737997031812,1.4415,229.16,229.0,0.03208583]
[1737997032017,4.3676,229.02,229.0,0.03208583]
[1737997032218,0.03116352,229.08,228.99,26.4045029]
[1737997032418,4.3668,229.06,228.99,26.43319173]
[1737997032621,0.02761628,229.06,228.99,26.43319173]
[1737997032821,0.02761628,229.06,228.99,26.4045029]
[1737997033017,4.3673,229.04,229.0,0.03189529]
[1737997033320,0.02761628,229.06,228.91,26.4045029]
[1737997033716,26.4045029,229.12,228.91,26.4045029]
[1737997034619,0.02778336,229.04,228.99,0.02808324]
[1737997034816,4.369,228.94,228.91,26.4045029]
[1737997035012,1.3923,229.03,228.87,26.4045029]
[1737997035218,1.3502,229.02,228.87,26.4045029]
[1737997035618,1.3502,229.02,228.91,26.4045029]
[1737997036021,0.02944119,228.99,228.94,0.02834742]
[1737997038523,0.02944119,228.99,228.82,26.4045029]
[1737997038722,0.02944119,228.99,228.69,26.4045029]
[1737997038723,0.02944119,228.99,228.78,26.4045029]
[1737997038924,26.4045029,228.96,228.78,26.4045029]
[1737997039122,4.3706,228.86,228.78,26.4045029]
[1737997039318,26.4045029,229.0,228.78,26.4045029]
[1737997039524,39.5745029,229.0,228.78,26.4045029]
[1737997039823,0.03343686,228.91,228.87,0.02930199]
[1737997040024,0.03343686,228.91,228.78,26.4045029]
[1737997040225,3.7,228.98,228.78,26.4045029]
[1737997040627,3.7,228.98,228.74,26.4045029]
[1737997040827,26.4045029,228.9,228.7,26.4045029]
[1737997041224,0.02961358,228.82,228.78,0.03346877]
[1737997041423,0.02961358,228.82,228.7,26.4045029]
[1737997041629,0.02961358,228.82,228.65,26.4045029]
[1737997042032,4.3725,228.76,228.66,4.3743]
[1737997042524,4.372,228.79,228.66,4.3743]
[1737997042725,0.03261671,228.73,228.69,0.03047412]
[1737997042924,0.03261671,228.73,228.69,26.4045029]
[1737997043122,0.03258527,228.73,228.69,26.4045029]
[1737997043325,0.03258527,228.73,228.69,26.43227941]
[1737997043731,0.03258527,228.73,228.69,0.02777651]
[1737997043930,4.3734,228.71,228.69,0.02777651]
[1737997044732,0.03258527,228.73,228.69,26.43227941]
[1737997045130,4.3736,228.7,228.69,0.02777651]
[1737997045435,0.03258527,228.73,228.69,0.02777651]
[1737997045729,4.3736,228.7,228.69,0.02777651]
[1737997045935,0.03258527,228.73,228.69,0.02777651]
[1737997046130,0.03258527,228.73,228.69,26.43227941]
[1737997046732,1.3086,228.88,228.78,4.372]
[1737997046932,4.371,228.84,228.78,30.7765029]
[1737997047134,4.371,228.84,228.78,26.4045029]
[1737997047334,4.3714,228.82,228.78,26.4045029]
[1737997047533,1.3086,228.88,228.74,26.4045029]
[1737997047834,4.3714,228.82,228.79,0.03027266]
[1737997048035,0.03199144,228.83,228.79,0.03027266]
[1737997048735,0.03199144,228.83,228.81,4.3714]
[1737997048932,0.03199144,228.83,228.82,26.4045029]
[1737997049235,1.3086,228.98,228.82,26.4045029]
[1737997049531,1.3086,228.98,228.86,26.4045029]
[1737997049938,4.3691,228.94,228.87,4.3703]
[1737997050134,1.3086,228.98,228.87,4.3703]
[1737997050437,0.03333392,228.93,228.88,0.03317896]
[1737997052635,4.3696,228.91,228.88,0.03317896]
[1737997052938,0.03333392,228.93,228.88,0.03317896]
[1737997054435,4.40273392,228.93,228.88,0.03317896]
[1737997054742,0.03333392,228.93,228.88,0.03317896]
[1737997054943,0.03333392,228.93,228.89,4.3699]
[1737997056237,0.03333392,228.93,228.88,0.03317896]
[1737997056438,0.03333392,228.93,228.89,26.4045029]
[1737997056934,0.03333392,228.93,228.9,4.3696]
[1737997057340,0.03333392,228.93,228.89,26.4045029]
[1737997057341,1.3096,229.07,228.89,26.4045029]
[1737997057639,4.3683,228.98,228.92,4.3692]
[1737997057838,1.3096,229.07,228.89,26.4045029]
[1737997058531,1.3096,229.07,228.96,0.03088778]
[1737997058532,0.03075195,229.0,228.96,0.03088778]
[1737997058738,0.03075195,229.0,228.97,26.4045029]
[1737997059134,0.03075195,229.0,228.98,4.3682]
[1737997059342,0.03075195,229.0,228.96,0.03088778]
[1737997059743,4.3685,228.97,228.96,0.03088778]
[1737997060044,4.3685,228.97,228.96,8.778e-05]
[1737997065447,5.772,228.97,228.96,8.778e-05]
[1737997067053,4.3714,228.82,228.74,26.20684275]
[1737997067253,26.20684275,228.94,228.74,26.20684275]
[1737997067447,2.7573,228.93,228.74,26.20684275]
[1737997068149,2.7573,228.93,228.81,0.03168221]
[1737997068344,0.03194244,228.86,228.81,0.03168221]
[1737997069453,4.3711,228.84,228.81,0.03168221]
[1737997069950,0.03194244,228.86,228.82,26.20684275]
[1737997070150,1.4364,229.01,228.82,26.20684275]
[1737997070454,1.4364,229.01,228.89,26.20684275]
[1737997070652,1.4364,229.01,228.83,1.4111]
[1737997070855,26.20684275,228.98,228.76,26.20684275]
[1737997071053,4.3711,228.83,228.76,26.20684275]
[1737997071354,0.02786412,228.89,228.85,0.03312612]
[1737997071555,4.371,228.84,228.76,26.20684275]
[1737997071953,4.371,228.84,228.78,0.03216071]
[1737997072149,0.03038374,228.82,228.78,0.03216071]
[1737997072354,1.443,228.93,228.76,26.20684275]
[1737997072547,0.0295551,228.82,228.78,0.03342261]
[1737997072750,0.23300009,228.93,228.76,26.20684275]
[1737997072751,4.3717,228.8,228.76,26.20684275]
[1737997072951,0.03122024,228.82,228.78,0.02800146]
[1737997073155,1.4061,228.92,228.76,26.20684275]
[1737997073357,0.03195204,228.82,228.78,0.02958247]
[1737997073652,1.4061,228.92,228.76,26.20684275]
[1737997073853,0.03206375,228.82,228.78,0.03359145]
[1737997074056,4.3713,228.82,228.76,26.20684275]
[1737997074250,4.3713,228.82,228.78,0.02979487]
[1737997074251,0.03234157,228.82,228.78,0.02979487]
[1737997076253,4.40384157,228.82,228.78,0.02979487]
[1737997076555,0.03234157,228.82,228.78,0.02979487]
[1737997076760,4.3715,228.81,228.78,0.02979487]
[1737997077151,0.03234157,228.82,228.78,0.02979487]
[1737997077350,5.1364,229.01,228.8,26.20684275]
[1737997077559,1.4393,228.99,228.8,26.20684275]
[1737997077859,4.37,228.9,228.82,4.3713]
[1737997078255,1.4393,228.99,228.8,26.20684275]
[1737997078461,4.3697,228.91,228.84,4.3709]
[1737997078662,0.02940647,228.92,228.87,0.02768085]
[1737997079053,4.3698,228.9,228.87,0.02768085]
[1737997079559,4.37,228.89,228.87,0.02768085]
[1737997079858,0.02940647,228.92,228.87,0.02768085]
[1737997080059,4.3702,228.88,228.87,0.02768085]
[1737997080659,0.02940647,228.92,228.87,0.02768085]
[1737997081361,0.02940647,228.92,228.73,26.20684275]
[1737997081562,26.20684275,228.94,228.73,26.20684275]
[1737997082361,4.3708,228.85,228.81,0.03056544]
[1737997082557,0.03273319,228.86,228.81,0.03056544]